[Event "*** Titled Tuesday Blitz"]
[Site "Chess.com"]
[Date "2021.04.27"]
[Round "6"]
[White "dodorox"]
[Black "malakismayil"]
[Result "1/2-1/2"]
[WhiteElo "2124"]
[BlackElo "2249"]
[TimeControl "180+1"]
[EndTime "11:07:43 PDT"]
[Termination "Game drawn by repetition"]

1. d4 {[%clk 0:03:00.9]} 1... Nf6 {[%clk 0:02:58.8]} 2. c4 {[%clk 0:03:00.7]}
2... e6 {[%clk 0:02:58.9]} 3. Nc3 {[%clk 0:03:00.7]} 3... Bb4 {[%clk 0:02:59.3]}
4. Bd2 {[%clk 0:03:01.3]} 4... O-O {[%clk 0:02:58.7]} 5. e3 {[%clk 0:03:01.5]}
5... b6 {[%clk 0:02:58.3]} 6. Rc1 {[%clk 0:02:58.3]} 6... Bb7 {[%clk 0:02:58.4]}
7. Nf3 {[%clk 0:02:58.7]} 7... d6 {[%clk 0:02:57.4]} 8. Bd3 {[%clk 0:02:57.5]}
8... Nbd7 {[%clk 0:02:57.1]} 9. Qc2 {[%clk 0:02:34.2]} 9... h6 {[%clk
0:02:43.3]} 10. a3 {[%clk 0:02:31.2]} 10... Bxc3 {[%clk 0:02:40.8]} 11. Bxc3
{[%clk 0:02:32.1]} 11... Qe7 {[%clk 0:02:41.1]} 12. e4 {[%clk 0:02:25.6]} 12...
e5 {[%clk 0:02:35.8]} 13. d5 {[%clk 0:02:19.1]} 13... a5 {[%clk 0:02:31.2]} 14.
b4 {[%clk 0:02:10.4]} 14... axb4 {[%clk 0:02:20.3]} 15. axb4 {[%clk 0:02:11.3]}
15... Ra3 {[%clk 0:02:19.3]} 16. O-O {[%clk 0:02:10]} 16... Rfa8 {[%clk
0:02:16.3]} 17. Ra1 {[%clk 0:02:10.5]} 17... Qd8 {[%clk 0:02:07.6]} 18. Qb2
{[%clk 0:02:05.3]} 18... Rxa1 {[%clk 0:02:00]} 19. Rxa1 {[%clk 0:02:06.2]} 19...
Rxa1+ {[%clk 0:01:58.7]} 20. Qxa1 {[%clk 0:02:06.4]} 20... Qa8 {[%clk
0:01:59.3]} 21. Qxa8+ {[%clk 0:02:04.6]} 21... Bxa8 {[%clk 0:02:00.2]} 22. Kf1
{[%clk 0:01:55.4]} 22... Kf8 {[%clk 0:01:59.1]} 23. Nd2 {[%clk 0:01:51.1]} 23...
Ke7 {[%clk 0:01:59]} 24. Ke2 {[%clk 0:01:49.5]} 24... Nh5 {[%clk 0:01:58.7]} 25.
g3 {[%clk 0:01:49]} 25... g6 {[%clk 0:01:58.1]} 26. Nb3 {[%clk 0:01:46]} 26...
Ng7 {[%clk 0:01:49.1]} 27. f3 {[%clk 0:01:40.5]} 27... f5 {[%clk 0:01:37.8]} 28.
Bd2 {[%clk 0:01:32.5]} 28... g5 {[%clk 0:01:28.4]} 29. exf5 {[%clk 0:01:29]}
29... Nh5 {[%clk 0:01:10.6]} 30. Be4 {[%clk 0:01:06.7]} 30... Ndf6 {[%clk
0:00:59.7]} 31. g4 {[%clk 0:00:59.7]} 31... Nf4+ {[%clk 0:00:53]} 32. Bxf4
{[%clk 0:00:59.2]} 32... gxf4 {[%clk 0:00:53.9]} 33. Bd3 {[%clk 0:00:54]} 33...
b5 {[%clk 0:00:49.9]} 34. cxb5 {[%clk 0:00:46.3]} 34... Nxd5 {[%clk 0:00:46]}
35. Be4 {[%clk 0:00:42.7]} 35... Nc3+ {[%clk 0:00:36.9]} 36. Kd3 {[%clk
0:00:43.3]} 36... Bxe4+ {[%clk 0:00:35.7]} 37. fxe4 {[%clk 0:00:41.6]} 37...
Nxb5 {[%clk 0:00:35.5]} 38. h4 {[%clk 0:00:40.7]} 38... Kf6 {[%clk 0:00:29.2]}
39. Ke2 {[%clk 0:00:32.4]} 39... Nc3+ {[%clk 0:00:28.2]} 40. Kf3 {[%clk
0:00:32.9]} 40... Nb1 {[%clk 0:00:21.7]} 41. Ke2 {[%clk 0:00:21.8]} 41... Nc3+
{[%clk 0:00:20.6]} 42. Kf3 {[%clk 0:00:21.1]} 42... c6 {[%clk 0:00:17.4]} 43.
Na5 {[%clk 0:00:19.1]} 43... d5 {[%clk 0:00:15.8]} 44. Nxc6 {[%clk 0:00:12.2]}
44... dxe4+ {[%clk 0:00:15.4]} 45. Kf2 {[%clk 0:00:12.8]} 45... e3+ {[%clk
0:00:14.9]} 46. Ke1 {[%clk 0:00:07.3]} 46... f3 {[%clk 0:00:14.5]} 47. g5+
{[%clk 0:00:07]} 47... hxg5 {[%clk 0:00:13.9]} 48. hxg5+ {[%clk 0:00:06.7]}
48... Kxf5 {[%clk 0:00:14.2]} 49. g6 {[%clk 0:00:07.2]} 49... Kxg6 {[%clk
0:00:13.9]} 50. Nxe5+ {[%clk 0:00:07.4]} 50... Kf5 {[%clk 0:00:14.4]} 51. Nxf3
{[%clk 0:00:08.2]} 51... Ke4 {[%clk 0:00:14.2]} 52. Nd2+ {[%clk 0:00:08.2]}
52... Kd3 {[%clk 0:00:12.5]} 53. Nf3 {[%clk 0:00:07.6]} 53... Nd5 {[%clk
0:00:11.2]} 54. b5 {[%clk 0:00:07.3]} 54... Nf4 {[%clk 0:00:07.2]} 55. Ne5+
{[%clk 0:00:06.3]} 55... Ke4 {[%clk 0:00:06.1]} 56. Ng4 {[%clk 0:00:06.3]} 56...
Kf3 {[%clk 0:00:04.3]} 57. Ne5+ {[%clk 0:00:05.2]} 57... Ke4 {[%clk 0:00:03.7]}
58. Ng4 {[%clk 0:00:05.8]} 58... Nd3+ {[%clk 0:00:03.9]} 59. Ke2 {[%clk
0:00:05.6]} 59... Nf4+ {[%clk 0:00:04.2]} 60. Ke1 {[%clk 0:00:05.6]} 1/2-1/2

[Event "*** Titled Tuesday Blitz"]
[Site "Chess.com"]
[Date "2021.04.27"]
[Round "6"]
[White "Ze-Pequeno"]
[Black "korkmaz16"]
[Result "0-1"]
[WhiteElo "2221"]
[BlackElo "2423"]
[TimeControl "180+1"]
[EndTime "11:07:50 PDT"]
[Termination "korkmaz16 won on time"]

1. e4 {[%clk 0:02:59.8]} 1... e6 {[%clk 0:02:57.5]} 2. d4 {[%clk 0:02:59.2]}
2... d5 {[%clk 0:02:56.9]} 3. Nc3 {[%clk 0:03:00.1]} 3... Nf6 {[%clk 0:02:56.8]}
4. Bg5 {[%clk 0:02:58.8]} 4... Be7 {[%clk 0:02:56.8]} 5. e5 {[%clk 0:02:58.8]}
5... Nfd7 {[%clk 0:02:57.1]} 6. h4 {[%clk 0:02:58.9]} 6... Bxg5 {[%clk
0:02:56.9]} 7. hxg5 {[%clk 0:02:57.8]} 7... Qxg5 {[%clk 0:02:57.8]} 8. Nh3
{[%clk 0:02:57.5]} 8... Qe7 {[%clk 0:02:57.8]} 9. Qg4 {[%clk 0:02:56.9]} 9... f5
{[%clk 0:02:57]} 10. Qh5+ {[%clk 0:02:51.6]} 10... g6 {[%clk 0:02:55.4]} 11. Qh6
{[%clk 0:02:48.5]} 11... a6 {[%clk 0:02:54.4]} 12. Ng5 {[%clk 0:02:45.1]} 12...
Nf8 {[%clk 0:02:53.9]} 13. Ne2 {[%clk 0:02:39.8]} 13... c5 {[%clk 0:02:41.8]}
14. O-O-O {[%clk 0:02:32.4]} 14... Nc6 {[%clk 0:02:40.1]} 15. c3 {[%clk
0:01:55.5]} 15... Bd7 {[%clk 0:02:37.1]} 16. Kb1 {[%clk 0:01:54.3]} 16... O-O-O
{[%clk 0:02:33]} 17. Nf4 {[%clk 0:01:51]} 17... Kb8 {[%clk 0:02:22.8]} 18. Be2
{[%clk 0:01:48.9]} 18... cxd4 {[%clk 0:02:20.9]} 19. cxd4 {[%clk 0:01:47.3]}
19... Na5 {[%clk 0:02:20.5]} 20. Rc1 {[%clk 0:01:25.3]} 20... Bb5 {[%clk
0:01:38.3]} 21. Bxb5 {[%clk 0:01:23.1]} 21... axb5 {[%clk 0:01:39.2]} 22. Rc5
{[%clk 0:01:23.5]} 22... Nc6 {[%clk 0:01:39]} 23. Rhc1 {[%clk 0:01:03.9]} 23...
Nxd4 {[%clk 0:01:31.9]} 24. Rc7 {[%clk 0:00:57.7]} 24... Nd7 {[%clk 0:01:31.5]}
25. a3 {[%clk 0:00:34.5]} 25... Nb3 {[%clk 0:01:27.2]} 26. R1c3 {[%clk
0:00:33.3]} 26... Nd4 {[%clk 0:01:21.7]} 27. Ka2 {[%clk 0:00:26.7]} 27... b4
{[%clk 0:01:18.3]} 28. axb4 {[%clk 0:00:24.9]} 28... Qxb4 {[%clk 0:01:18.4]} 29.
Ngxe6 {[%clk 0:00:23.8]} 29... Nxe6 {[%clk 0:01:15.9]} 30. Nxe6 {[%clk
0:00:23.7]} 30... Rc8 {[%clk 0:01:11.6]} 31. Rxc8+ {[%clk 0:00:20.6]} 31... Rxc8
{[%clk 0:01:11.1]} 32. Rxc8+ {[%clk 0:00:21.5]} 32... Kxc8 {[%clk 0:01:11.9]}
33. Qxh7 {[%clk 0:00:17.2]} 33... Qa4+ {[%clk 0:01:05.7]} 34. Kb1 {[%clk
0:00:17.1]} 34... Qd1+ {[%clk 0:01:04.8]} 35. Ka2 {[%clk 0:00:17.3]} 35... Qa4+
{[%clk 0:00:46.5]} 36. Kb1 {[%clk 0:00:17.3]} 36... b6 {[%clk 0:00:22.8]} 37.
Qg8+ {[%clk 0:00:14.2]} 37... Kb7 {[%clk 0:00:23.1]} 38. Qd8 {[%clk 0:00:14.2]}
38... Nc5 {[%clk 0:00:16.7]} 39. Qc7+ {[%clk 0:00:10.9]} 39... Ka6 {[%clk
0:00:17.2]} 40. Nxc5+ {[%clk 0:00:09.8]} 40... bxc5 {[%clk 0:00:17.7]} 41. Qxc5
{[%clk 0:00:10.2]} 41... Qe4+ {[%clk 0:00:15.8]} 42. Ka2 {[%clk 0:00:10]} 42...
Qxe5 {[%clk 0:00:16.7]} 43. Qc6+ {[%clk 0:00:09.2]} 43... Ka7 {[%clk 0:00:16.9]}
44. Qxg6 {[%clk 0:00:09]} 44... d4 {[%clk 0:00:16.5]} 45. Qf7+ {[%clk
0:00:08.8]} 45... Kb6 {[%clk 0:00:16.2]} 46. Qc4 {[%clk 0:00:08.1]} 46... Qe4
{[%clk 0:00:15.3]} 47. Qb4+ {[%clk 0:00:07]} 47... Kc6 {[%clk 0:00:15.3]} 48.
Qc4+ {[%clk 0:00:07.1]} 48... Kd6 {[%clk 0:00:15.3]} 49. f3 {[%clk 0:00:08]}
49... Qe3 {[%clk 0:00:13.8]} 50. Qa6+ {[%clk 0:00:05.9]} 50... Ke5 {[%clk
0:00:13.9]} 51. Qb6 {[%clk 0:00:03.8]} 51... Qd3 {[%clk 0:00:09.7]} 52. Qc7+
{[%clk 0:00:02.2]} 52... Kf6 {[%clk 0:00:08]} 53. Qd6+ {[%clk 0:00:01.8]} 53...
Kg5 {[%clk 0:00:08.4]} 54. Qg3+ {[%clk 0:00:01.8]} 54... Kf6 {[%clk 0:00:08.8]}
55. Qd6+ {[%clk 0:00:01.9]} 55... Kg5 {[%clk 0:00:08.6]} 56. b4 {[%clk
0:00:01.2]} 56... Qe2+ {[%clk 0:00:06.9]} 0-1

[Event "*** Titled Tuesday Blitz"]
[Site "Chess.com"]
[Date "2021.04.27"]
[Round "6"]
[White "LifeIsAllAboutChess23"]
[Black "ExtremeLearner"]
[Result "0-1"]
[WhiteElo "2205"]
[BlackElo "2422"]
[TimeControl "180+1"]
[EndTime "11:07:52 PDT"]
[Termination "ExtremeLearner won on time"]

1. d4 {[%clk 0:03:00.9]} 1... d5 {[%clk 0:02:56.5]} 2. Bg5 {[%clk 0:02:59.6]}
2... h6 {[%clk 0:02:54.9]} 3. Bh4 {[%clk 0:02:59.3]} 3... Nf6 {[%clk 0:02:53.3]}
4. e3 {[%clk 0:02:56.1]} 4... c6 {[%clk 0:02:51.2]} 5. Bd3 {[%clk 0:02:52.6]}
5... Bg4 {[%clk 0:02:49.8]} 6. f3 {[%clk 0:02:48.2]} 6... Be6 {[%clk 0:02:43.9]}
7. c3 {[%clk 0:02:45.1]} 7... g5 {[%clk 0:02:41.4]} 8. Bf2 {[%clk 0:02:42.9]}
8... Bg7 {[%clk 0:02:42]} 9. Nd2 {[%clk 0:02:42.9]} 9... Nbd7 {[%clk 0:02:40.9]}
10. f4 {[%clk 0:02:38.4]} 10... Bg4 {[%clk 0:02:26.5]} 11. Ngf3 {[%clk 0:02:36]}
11... gxf4 {[%clk 0:02:20.4]} 12. exf4 {[%clk 0:02:36.9]} 12... Qb6 {[%clk
0:02:19.6]} 13. Qc2 {[%clk 0:02:31.3]} 13... c5 {[%clk 0:01:58.4]} 14. Ne5
{[%clk 0:01:34.4]} 14... c4 {[%clk 0:01:37.3]} 15. Bg6 {[%clk 0:00:57]} 15...
Bh5 {[%clk 0:00:58.4]} 16. Nxf7 {[%clk 0:00:46.2]} 16... Qe6+ {[%clk 0:00:35]}
17. Ne5+ {[%clk 0:00:38.6]} 17... Kd8 {[%clk 0:00:35.1]} 18. O-O {[%clk
0:00:20.6]} 18... Bxg6 {[%clk 0:00:18.8]} 19. Qxg6 {[%clk 0:00:20.2]} 19... Rg8
{[%clk 0:00:19.7]} 20. f5 {[%clk 0:00:19.7]} 20... Nxe5 {[%clk 0:00:15.1]} 21.
dxe5 {[%clk 0:00:17.5]} 21... Qxe5 {[%clk 0:00:16]} 22. Bd4 {[%clk 0:00:16.7]}
22... Qd6 {[%clk 0:00:15.6]} 23. Rae1 {[%clk 0:00:15.8]} 23... Kd7 {[%clk
0:00:13.9]} 24. Qf7 {[%clk 0:00:14.4]} 24... Raf8 {[%clk 0:00:13.6]} 25. Qe6+
{[%clk 0:00:14.2]} 25... Qxe6 {[%clk 0:00:14]} 26. fxe6+ {[%clk 0:00:14.2]}
26... Kc6 {[%clk 0:00:13]} 27. Nf3 {[%clk 0:00:14.4]} 27... Ne4 {[%clk 0:00:12]}
28. Bxg7 {[%clk 0:00:13.8]} 28... Rxf3 {[%clk 0:00:11.3]} 29. Rxf3 {[%clk
0:00:10.8]} 29... Rxg7 {[%clk 0:00:11.5]} 30. Rf7 {[%clk 0:00:11.3]} 30... Rg6
{[%clk 0:00:09.2]} 31. Rxe7 {[%clk 0:00:11.3]} 31... Kd6 {[%clk 0:00:09.7]} 32.
Rxb7 {[%clk 0:00:11.5]} 32... Rxe6 {[%clk 0:00:05.7]} 33. Rxa7 {[%clk
0:00:11.7]} 33... Ke5 {[%clk 0:00:05.5]} 34. h3 {[%clk 0:00:09.6]} 34... Rb6
{[%clk 0:00:04.9]} 35. Re7+ {[%clk 0:00:09.2]} 35... Kd6 {[%clk 0:00:04.9]} 36.
Rh7 {[%clk 0:00:09.1]} 36... Rxb2 {[%clk 0:00:04.2]} 37. Rxh6+ {[%clk
0:00:09.4]} 37... Kc5 {[%clk 0:00:04.6]} 38. a3 {[%clk 0:00:07.7]} 38... Nxc3
{[%clk 0:00:04.8]} 39. Rhe6 {[%clk 0:00:07.8]} 39... Ra2 {[%clk 0:00:02.6]} 40.
h4 {[%clk 0:00:05.6]} 40... Rxa3 {[%clk 0:00:02.6]} 41. h5 {[%clk 0:00:06.1]}
41... Ne4 {[%clk 0:00:03.3]} 42. h6 {[%clk 0:00:05.7]} 42... c3 {[%clk
0:00:03.6]} 43. h7 {[%clk 0:00:05.8]} 43... Ra8 {[%clk 0:00:03.2]} 44. R1xe4
{[%clk 0:00:03.8]} 44... dxe4 {[%clk 0:00:04.1]} 45. Rxe4 {[%clk 0:00:04.4]}
45... Rh8 {[%clk 0:00:04.7]} 46. Re7 {[%clk 0:00:03.9]} 46... Kd4 {[%clk
0:00:03.7]} 47. g4 {[%clk 0:00:02.8]} 47... c2 {[%clk 0:00:03.3]} 48. Rc7 {[%clk
0:00:03.4]} 48... Kd3 {[%clk 0:00:04.2]} 49. g5 {[%clk 0:00:03.8]} 49... Rxh7
{[%clk 0:00:04.4]} 50. Rc6 {[%clk 0:00:02.6]} 50... Rg7 {[%clk 0:00:04.4]} 51.
Kf2 {[%clk 0:00:02.3]} 51... Rxg5 {[%clk 0:00:04.5]} 52. Kf3 {[%clk 0:00:02.4]}
52... Rg1 {[%clk 0:00:02.9]} 53. Rd6+ {[%clk 0:00:02.7]} 53... Kc3 {[%clk
0:00:03.2]} 54. Rc6+ {[%clk 0:00:03.1]} 54... Kd2 {[%clk 0:00:03.1]} 55. Rd6+
{[%clk 0:00:03.2]} 55... Kc1 {[%clk 0:00:03.8]} 56. Ke2 {[%clk 0:00:03.3]} 56...
Rd1 {[%clk 0:00:04]} 57. Rc6 {[%clk 0:00:02.8]} 57... Rd2+ {[%clk 0:00:04.5]}
58. Ke3 {[%clk 0:00:02.5]} 58... Kd1 {[%clk 0:00:03.6]} 0-1

[Event "*** Titled Tuesday Blitz"]
[Site "Chess.com"]
[Date "2021.04.27"]
[Round "6"]
[White "scandalgod"]
[Black "Chandradi"]
[Result "1-0"]
[WhiteElo "2590"]
[BlackElo "2376"]
[TimeControl "180+1"]
[EndTime "11:07:54 PDT"]
[Termination "scandalgod won by resignation"]

1. d4 {[%clk 0:00:52.4]} 1... Nf6 {[%clk 0:02:58.4]} 2. c4 {[%clk 0:00:52.5]}
2... e6 {[%clk 0:02:58.4]} 3. g3 {[%clk 0:00:52.5]} 3... d5 {[%clk 0:02:54]} 4.
Nf3 {[%clk 0:00:52.5]} 4... dxc4 {[%clk 0:02:51.8]} 5. Bg2 {[%clk 0:00:52.7]}
5... Bd7 {[%clk 0:02:51.9]} 6. Ne5 {[%clk 0:00:51.7]} 6... Bc6 {[%clk
0:02:52.3]} 7. Nxc6 {[%clk 0:00:49.7]} 7... Nxc6 {[%clk 0:02:53.2]} 8. Bxc6+
{[%clk 0:00:46.8]} 8... bxc6 {[%clk 0:02:52]} 9. Nc3 {[%clk 0:00:43.6]} 9... Bb4
{[%clk 0:02:47]} 10. Qa4 {[%clk 0:00:39.9]} 10... Qd6 {[%clk 0:02:39.7]} 11. Bf4
{[%clk 0:00:37.8]} 11... Bxc3+ {[%clk 0:02:20]} 12. bxc3 {[%clk 0:00:36.4]}
12... Qd5 {[%clk 0:02:17.5]} 13. O-O {[%clk 0:00:31.8]} 13... Ne4 {[%clk
0:02:07.3]} 14. Rac1 {[%clk 0:00:26.7]} 14... Nd6 {[%clk 0:02:02.9]} 15. f3
{[%clk 0:00:22.2]} 15... O-O {[%clk 0:01:58.7]} 16. e4 {[%clk 0:00:21.7]} 16...
Qb5 {[%clk 0:01:58.7]} 17. Qc2 {[%clk 0:00:22.1]} 17... f5 {[%clk 0:01:55.2]}
18. Rb1 {[%clk 0:00:21.2]} 18... Qa5 {[%clk 0:01:49.6]} 19. e5 {[%clk
0:00:20.3]} 19... Nf7 {[%clk 0:01:42.6]} 20. Rb4 {[%clk 0:00:19.2]} 20... Rab8
{[%clk 0:01:36.1]} 21. Rfb1 {[%clk 0:00:17.7]} 21... Rxb4 {[%clk 0:01:35]} 22.
Rxb4 {[%clk 0:00:18.6]} 22... Qd5 {[%clk 0:01:33.6]} 23. Qe2 {[%clk 0:00:12.9]}
23... c5 {[%clk 0:01:29.8]} 24. Rb5 {[%clk 0:00:13]} 24... Qd7 {[%clk
0:01:19.8]} 25. Rxc5 {[%clk 0:00:13]} 25... Qa4 {[%clk 0:01:19.7]} 26. Rxc4
{[%clk 0:00:10.5]} 26... Qb5 {[%clk 0:01:15.2]} 27. Kf2 {[%clk 0:00:10.4]} 27...
c6 {[%clk 0:01:09.5]} 28. Rb4 {[%clk 0:00:09.5]} 28... Qd5 {[%clk 0:01:09.6]}
29. Be3 {[%clk 0:00:07.6]} 29... g5 {[%clk 0:01:03.2]} 30. Qc4 {[%clk
0:00:07.5]} 30... Qd7 {[%clk 0:01:00.3]} 31. Qc5 {[%clk 0:00:06.8]} 31... Kg7
{[%clk 0:00:35.5]} 32. Ra4 {[%clk 0:00:06.8]} 32... Ra8 {[%clk 0:00:34.7]} 33.
Rb4 {[%clk 0:00:06.6]} 33... h6 {[%clk 0:00:32.5]} 34. Rc4 {[%clk 0:00:06.9]}
34... Rc8 {[%clk 0:00:32]} 35. Rb4 {[%clk 0:00:07.1]} 35... Qd5 {[%clk
0:00:20.6]} 36. a4 {[%clk 0:00:06.2]} 36... Qxc5 {[%clk 0:00:18.8]} 37. dxc5
{[%clk 0:00:07.1]} 37... Nxe5 {[%clk 0:00:19.2]} 38. Rb7+ {[%clk 0:00:07.7]}
38... Kg6 {[%clk 0:00:18.7]} 39. Rxa7 {[%clk 0:00:07.9]} 39... f4 {[%clk
0:00:14.5]} 40. Bd4 {[%clk 0:00:08.1]} 40... Nd3+ {[%clk 0:00:09.9]} 41. Ke2
{[%clk 0:00:08.2]} 41... Nc1+ {[%clk 0:00:10.2]} 42. Kd1 {[%clk 0:00:07]} 42...
Nb3 {[%clk 0:00:07.2]} 43. gxf4 {[%clk 0:00:06.6]} 43... gxf4 {[%clk 0:00:07.2]}
44. Kc2 {[%clk 0:00:06.6]} 44... Nxd4+ {[%clk 0:00:03.2]} 45. cxd4 {[%clk
0:00:06.6]} 45... Kf5 {[%clk 0:00:02.6]} 46. Kc3 {[%clk 0:00:04.7]} 46... Rg8
{[%clk 0:00:02.2]} 47. Rf7+ {[%clk 0:00:04.2]} 47... Kg5 {[%clk 0:00:02.2]} 48.
Re7 {[%clk 0:00:04]} 48... Kf6 {[%clk 0:00:02.3]} 49. Rh7 {[%clk 0:00:04.1]}
49... Rg2 {[%clk 0:00:03.2]} 50. Rxh6+ {[%clk 0:00:03.6]} 50... Kf5 {[%clk
0:00:03.5]} 51. Kb4 {[%clk 0:00:02.3]} 51... Rb2+ {[%clk 0:00:03.1]} 52. Ka5
{[%clk 0:00:01.7]} 52... Rf2 {[%clk 0:00:04]} 53. Kb6 {[%clk 0:00:01.8]} 53...
Rxf3 {[%clk 0:00:04.9]} 54. Kxc6 {[%clk 0:00:02.7]} 54... Ra3 {[%clk 0:00:05]}
55. Kd6 {[%clk 0:00:03.2]} 55... f3 {[%clk 0:00:05.1]} 56. Rh5+ {[%clk
0:00:03.7]} 56... Kf4 {[%clk 0:00:05.1]} 57. Rh8 {[%clk 0:00:04.3]} 57... f2
{[%clk 0:00:04.9]} 58. Rf8+ {[%clk 0:00:05.2]} 58... Ke3 {[%clk 0:00:05.8]} 59.
Kxe6 {[%clk 0:00:05.4]} 59... Ke2 {[%clk 0:00:05.2]} 60. Rxf2+ {[%clk
0:00:05.9]} 60... Kxf2 {[%clk 0:00:06]} 61. d5 {[%clk 0:00:06.8]} 61... Rxa4
{[%clk 0:00:06.4]} 62. c6 {[%clk 0:00:07]} 62... Kg2 {[%clk 0:00:06]} 63. c7
{[%clk 0:00:07.4]} 63... Rc4 {[%clk 0:00:05.6]} 64. d6 {[%clk 0:00:07.9]} 64...
Kxh2 {[%clk 0:00:06]} 65. d7 {[%clk 0:00:08.3]} 65... Re4+ {[%clk 0:00:06.3]}
66. Kd5 {[%clk 0:00:08.3]} 1-0

[Event "*** Titled Tuesday Blitz"]
[Site "Chess.com"]
[Date "2021.04.27"]
[Round "6"]
[White "anon6121824"]
[Black "amintabatabaei"]
[Result "0-1"]
[WhiteElo "2815"]
[BlackElo "2987"]
[TimeControl "180+1"]
[EndTime "11:07:58 PDT"]
[Termination "amintabatabaei won on time"]

1. e4 {[%clk 0:02:46.5]} 1... c5 {[%clk 0:02:58.2]} 2. Nc3 {[%clk 0:02:46.1]}
2... Nc6 {[%clk 0:02:57.1]} 3. g3 {[%clk 0:02:46.8]} 3... g6 {[%clk 0:02:56.8]}
4. Bg2 {[%clk 0:02:47.4]} 4... Bg7 {[%clk 0:02:57.6]} 5. Nge2 {[%clk 0:02:48.1]}
5... Rb8 {[%clk 0:02:58.2]} 6. O-O {[%clk 0:02:48.7]} 6... b5 {[%clk 0:02:58.1]}
7. d3 {[%clk 0:02:48.3]} 7... e6 {[%clk 0:02:58]} 8. Be3 {[%clk 0:02:46.4]} 8...
Nd4 {[%clk 0:02:53.5]} 9. Qd2 {[%clk 0:02:40.3]} 9... d6 {[%clk 0:02:51.6]} 10.
Nd1 {[%clk 0:02:34.9]} 10... h5 {[%clk 0:02:44.9]} 11. h4 {[%clk 0:02:27.3]}
11... Ne7 {[%clk 0:02:42]} 12. c3 {[%clk 0:02:15.7]} 12... Nxe2+ {[%clk
0:02:40.7]} 13. Qxe2 {[%clk 0:02:16.6]} 13... b4 {[%clk 0:02:41.3]} 14. Qd2
{[%clk 0:02:10.3]} 14... O-O {[%clk 0:02:37.3]} 15. Bh6 {[%clk 0:02:00.9]} 15...
a5 {[%clk 0:02:32.2]} 16. Bxg7 {[%clk 0:02:00.8]} 16... Kxg7 {[%clk 0:02:33.1]}
17. Ne3 {[%clk 0:01:57.9]} 17... Ba6 {[%clk 0:02:31.3]} 18. Rfd1 {[%clk
0:01:55.8]} 18... Qb6 {[%clk 0:02:28.1]} 19. d4 {[%clk 0:01:46.3]} 19... bxc3
{[%clk 0:02:18.2]} 20. bxc3 {[%clk 0:01:46.1]} 20... cxd4 {[%clk 0:02:18.5]} 21.
cxd4 {[%clk 0:01:45.4]} 21... Rfc8 {[%clk 0:02:17.9]} 22. Rac1 {[%clk
0:01:41.1]} 22... Qb4 {[%clk 0:02:14.6]} 23. Rxc8 {[%clk 0:01:28.2]} 23... Qxd2
{[%clk 0:02:07.8]} 24. Rxd2 {[%clk 0:01:27.5]} 24... Nxc8 {[%clk 0:02:06.8]} 25.
Rc2 {[%clk 0:01:22.6]} 25... Rb4 {[%clk 0:02:04.3]} 26. Bf1 {[%clk 0:01:10.2]}
26... Bxf1 {[%clk 0:02:03.9]} 27. Kxf1 {[%clk 0:01:10.9]} 27... Ne7 {[%clk
0:01:50.5]} 28. Rc4 {[%clk 0:01:08.1]} 28... Rb2 {[%clk 0:01:47.4]} 29. Rc2
{[%clk 0:01:07.2]} 29... Rxc2 {[%clk 0:01:37.4]} 30. Nxc2 {[%clk 0:01:08.1]}
30... f5 {[%clk 0:01:38.3]} 31. e5 {[%clk 0:01:01.2]} 31... Nc8 {[%clk
0:01:10.3]} 32. Ke2 {[%clk 0:00:57.7]} 32... Kf7 {[%clk 0:01:07.5]} 33. Kd3
{[%clk 0:00:55.3]} 33... d5 {[%clk 0:00:54.9]} 34. Ne3 {[%clk 0:00:53]} 34... f4
{[%clk 0:00:50.3]} 35. gxf4 {[%clk 0:00:49.4]} 35... Ne7 {[%clk 0:00:35.6]} 36.
Kc3 {[%clk 0:00:48.4]} 36... Ke8 {[%clk 0:00:34.7]} 37. Kb3 {[%clk 0:00:46.6]}
37... Nc6 {[%clk 0:00:30.7]} 38. Ka4 {[%clk 0:00:34]} 38... Nxd4 {[%clk
0:00:28.7]} 39. Kxa5 {[%clk 0:00:34.3]} 39... Nf3 {[%clk 0:00:20.1]} 40. Ng2
{[%clk 0:00:21]} 40... Kd7 {[%clk 0:00:16]} 41. Kb4 {[%clk 0:00:19.6]} 41... Kc6
{[%clk 0:00:16.1]} 42. Kc3 {[%clk 0:00:18.2]} 42... Kb5 {[%clk 0:00:14.2]} 43.
Kd3 {[%clk 0:00:18.7]} 43... Kb4 {[%clk 0:00:12.2]} 44. Ke3 {[%clk 0:00:15.8]}
44... Nh2 {[%clk 0:00:12.6]} 45. f3 {[%clk 0:00:13.4]} 45... Nf1+ {[%clk
0:00:04.8]} 46. Kf2 {[%clk 0:00:12.1]} 46... Nd2 {[%clk 0:00:05.2]} 47. f5
{[%clk 0:00:12.7]} 47... gxf5 {[%clk 0:00:05.5]} 48. Nf4 {[%clk 0:00:13]} 48...
Nc4 {[%clk 0:00:06]} 49. Nxe6 {[%clk 0:00:12.4]} 49... Nxe5 {[%clk 0:00:04.5]}
50. Nd4 {[%clk 0:00:12.9]} 50... Kc3 {[%clk 0:00:02.7]} 51. Nxf5 {[%clk
0:00:12.9]} 51... d4 {[%clk 0:00:03.4]} 52. Nd6 {[%clk 0:00:04.6]} 52... d3
{[%clk 0:00:03]} 53. Ne4+ {[%clk 0:00:05.2]} 53... Kc2 {[%clk 0:00:03.6]} 54.
Ke3 {[%clk 0:00:05.9]} 54... Nc4+ {[%clk 0:00:03.3]} 55. Kd4 {[%clk 0:00:06.3]}
55... Nd6 {[%clk 0:00:02.4]} 56. Nf2 {[%clk 0:00:05.5]} 56... d2 {[%clk
0:00:02.7]} 57. f4 {[%clk 0:00:05.6]} 57... Nf5+ {[%clk 0:00:03]} 58. Ke4 {[%clk
0:00:05.7]} 58... Ng3+ {[%clk 0:00:02.3]} 59. Kf3 {[%clk 0:00:05.8]} 59... Nh1
{[%clk 0:00:02.7]} 0-1